bitfinex/quotes_BTCUSD_20240820
["timestamp","ask_amount","ask_price","bid_price","bid_amount"]
[1724188061264,0.01539567,59168.0,59158.0,0.0009075]
[1724188061515,0.338041,59165.0,59158.0,0.0009075]
[1724188061805,0.01539567,59164.0,59158.0,0.0009075]
[1724188062008,0.338041,59165.0,59158.0,0.0009075]
[1724188062009,0.01539567,59163.0,59158.0,0.0079075]
[1724188062201,0.169025,59163.0,59158.0,0.0009075]
[1724188062401,0.1844214,59162.0,59158.0,0.0009075]
[1724188062623,0.0153944,59161.0,59158.0,0.0079075]
[1724188062808,0.169027,59162.0,59158.0,0.0079075]
[1724188062982,0.16903,59161.0,59158.0,0.0079075]
[1724188063200,0.16903,59161.0,59158.0,0.1769445]
[1724188063201,0.0013508,59161.0,59158.0,0.1769445]
[1724188063404,0.0013508,59161.0,59158.0,0.0009075]
[1724188064376,0.0013508,59161.0,59160.0,0.169033]
[1724188064583,0.0013508,59161.0,59160.0,0.192033]
[1724188064991,0.0013508,59161.0,59160.0,0.023]
[1724188065190,0.0013508,59161.0,59158.0,0.0009075]
[1724188065191,0.507106,59159.0,59158.0,0.0149075]
[1724188065392,0.01538268,59159.0,59158.0,0.0009075]
[1724188065696,0.169034,59160.0,59158.0,0.0009075]
[1724188067610,0.169093,59139.0,59132.0,0.067]
[1724188067765,0.03,59150.0,59132.0,0.067]
[1724188067766,0.169083,59143.0,59133.0,0.338218]
[1724188067969,0.169083,59143.0,59132.0,0.067]
[1724188067970,0.169087,59141.0,59132.0,0.067]
[1724188068183,0.169087,59141.0,59137.0,0.169098]
[1724188068384,0.338131,59149.0,59132.0,0.067]
[1724188068633,0.338149,59146.0,59138.0,0.169094]
[1724188068838,0.03,59150.0,59132.0,0.067]
[1724188069008,0.01537932,59149.0,59136.0,0.3392]
[1724188069211,0.169066,59149.0,59135.0,0.001]
[1724188069434,0.169061,59150.0,59140.0,0.338178]
[1724188069664,0.338122,59151.0,59144.0,0.169078]
[1724188069665,0.169064,59149.0,59144.0,0.169078]
[1724188069880,0.169064,59149.0,59145.0,0.023]
[1724188070138,0.338122,59151.0,59145.0,0.192075]
[1724188070328,0.169065,59149.0,59145.0,0.023]
[1724188070528,0.169069,59148.0,59145.0,0.0760239]
[1724188070760,0.002,59146.0,59145.0,0.023]
[1724188070963,0.169069,59148.0,59144.0,0.023]
[1724188071167,0.169069,59148.0,59144.0,0.192078]
[1724188071384,0.338122,59151.0,59145.0,0.008]
[1724188071385,0.339122,59151.0,59145.0,0.008]
[1724188071604,0.339122,59151.0,59146.0,0.02463075]
[1724188071605,0.001,59151.0,59146.0,0.02463075]
[1724188071806,0.001,59151.0,59150.0,0.506184]
[1724188072024,0.001,59151.0,59150.0,0.023]
[1724188072228,0.169058,59151.0,59150.0,0.023]
[1724188072431,0.001,59148.0,59146.0,0.023]
[1724188072632,0.001,59148.0,59146.0,0.192072]
[1724188072836,0.001,59148.0,59147.0,0.16907]
[1724188073035,0.001,59148.0,59147.0,0.19207]
[1724188073239,0.001,59148.0,59147.0,0.023]
[1724188073370,0.338108,59153.0,59146.0,0.192072]
[1724188073585,0.16906,59151.0,59146.0,0.192072]
[1724188073790,0.338108,59153.0,59146.0,0.023]
[1724188074035,0.338108,59153.0,59150.0,0.008]
[1724188074036,0.169058,59151.0,59150.0,0.008]
[1724188074556,0.252866,59149.0,59143.0,0.023]
[1724188074765,0.169067,59148.0,59146.0,0.007]
[1724188074969,0.169067,59148.0,59146.0,0.0368166]
[1724188075175,0.338108,59153.0,59143.0,0.023]
[1724188075176,0.1704078,59152.0,59150.0,0.008]
[1724188075310,0.169058,59151.0,59150.0,0.008]
[1724188075509,0.169058,59151.0,59145.0,0.338151]
[1724188075510,0.0013508,59152.0,59145.0,0.338151]
[1724188075741,0.0013508,59152.0,59151.0,0.169058]
[1724188075939,0.0013508,59152.0,59151.0,0.530175]
[1724188076294,0.0013508,59152.0,59151.0,0.868292]
[1724188077603,0.0013508,59152.0,59151.0,0.530175]
[1724188077984,0.0013508,59152.0,59151.0,0.537175]
[1724188078161,0.0013508,59152.0,59151.0,0.199058]
[1724188078812,0.0013508,59152.0,59151.0,0.537175]
[1724188079014,0.0013508,59152.0,59151.0,0.96301172]
[1724188079627,0.0013508,59152.0,59151.0,0.03]
[1724188079830,0.0013508,59152.0,59151.0,0.199058]
[1724188080044,0.0013508,59152.0,59151.0,0.03]
[1724188080464,0.0013508,59152.0,59151.0,0.192058]
[1724188080684,0.1704058,59152.0,59151.0,0.012]
[1724188081178,0.5085168,59152.0,59151.0,0.012]
[1724188081379,0.94330681,59152.0,59151.0,0.012]
[1724188081582,0.507201,59148.0,59147.0,0.0009042]
[1724188081789,0.845335,59148.0,59147.0,0.0009042]
[1724188082205,1.183469,59148.0,59147.0,0.0009042]
[1724188083327,1.26364626,59148.0,59147.0,0.0009042]
[1724188083605,1.26364626,59148.0,59147.0,0.00062361]
[1724188083818,1.26364626,59148.0,59147.0,0.01162361]
[1724188084029,1.26364626,59148.0,59147.0,0.00062361]
[1724188084242,1.248269,59148.0,59147.0,0.00062361]
[1724188084467,1.34034585,59148.0,59147.0,0.00662361]
[1724188085163,1.34034566,59148.0,59147.0,0.00662361]
[1724188086331,1.00221166,59148.0,59147.0,0.00662361]
[1724188086546,0.66407766,59148.0,59147.0,0.00662361]
[1724188086979,0.26114366,59148.0,59147.0,0.00662361]
[1724188087197,0.169067,59148.0,59147.0,0.00662361]
[1724188087648,0.169067,59148.0,59147.0,0.00062361]
[1724188088094,0.03,59150.0,59147.0,0.01162361]
[1724188088315,0.169065,59149.0,59147.0,0.00062361]
[1724188088522,0.199062,59150.0,59147.0,0.01462361]
[1724188088789,0.0013508,59152.0,59151.0,0.507175]
[1724188088995,0.0013508,59152.0,59148.0,0.023]
[1724188089396,0.0013508,59152.0,59148.0,0.192065]
[1724188089806,0.0013508,59152.0,59148.0,0.023]
[1724188090031,0.0013508,59152.0,59150.0,0.16906]
[1724188090232,0.0013508,59152.0,59151.0,0.023]
[1724188090437,0.01673169,59152.0,59151.0,0.023]
[1724188090647,0.01673169,59152.0,59151.0,0.192058]
[1724188090874,0.01673169,59152.0,59151.0,0.24734286]
[1724188091304,0.0013508,59152.0,59151.0,0.1929622]
[1724188091710,0.0013508,59152.0,59151.0,0.5410792]
[1724188092747,0.0013508,59152.0,59151.0,0.0339042]
[1724188092965,0.0013508,59152.0,59151.0,0.0109042]
[1724188092966,0.18578611,59152.0,59151.0,0.0109042]
[1724188093265,0.01673147,59152.0,59151.0,0.0109042]
[1724188093421,0.18578647,59152.0,59151.0,0.0109042]
[1724188093624,0.01673147,59152.0,59151.0,0.0009042]
[1724188094032,0.18578647,59152.0,59151.0,0.0129042]
[1724188094231,0.01673147,59152.0,59151.0,0.0129042]
[1724188094441,0.18578647,59152.0,59151.0,0.0129042]
[1724188094640,0.01673147,59152.0,59151.0,0.0129042]
[1724188094834,0.01673147,59152.0,59151.0,0.0009042]
[1724188095013,0.18578647,59152.0,59151.0,0.0109042]
[1724188095631,0.01673147,59152.0,59151.0,0.0109042]
[1724188095903,0.18578647,59152.0,59151.0,0.0109042]
[1724188096749,0.52389747,59152.0,59151.0,0.0109042]
[1724188097663,0.52089747,59152.0,59151.0,0.0109042]
[1724188098747,0.338889,59160.0,59151.0,0.0109042]
[1724188098748,0.000822,59160.0,59151.0,0.0109042]
[1724188098933,0.000822,59160.0,59152.0,0.06122042]
[1724188099123,0.338076,59159.0,59152.0,0.06122042]
[1724188099531,0.000822,59160.0,59152.0,0.23027542]
[1724188099716,0.169037,59159.0,59152.0,0.23027542]
[1724188100120,0.169039,59158.0,59152.0,0.23027342]
[1724188100325,0.169039,59158.0,59153.0,0.05793016]
[1724188100548,0.169039,59158.0,59154.0,0.023]
[1724188100751,0.338888,59160.0,59154.0,0.023]
[1724188100957,0.169037,59159.0,59154.0,0.023]
[1724188101150,0.338888,59160.0,59154.0,0.023]
[1724188101151,0.000822,59160.0,59155.0,0.23206798]
[1724188101356,0.000822,59160.0,59158.0,0.169036]
[1724188101581,0.000822,59160.0,59159.0,0.023]
[1724188101773,0.000822,59160.0,59157.0,0.169039]
[1724188101947,0.000822,59160.0,59158.0,0.023]
[1724188102793,0.000822,59160.0,59155.0,0.60336598]
[1724188102794,0.169856,59160.0,59156.0,0.192043]
[1724188102964,0.000822,59158.0,59156.0,0.192043]
[1724188103163,0.000822,59158.0,59157.0,0.169041]
[1724188103368,0.000822,59158.0,59157.0,0.192041]
[1724188104237,0.000822,59158.0,59157.0,0.197041]
[1724188104643,0.000822,59158.0,59157.0,0.15824612]
[1724188104886,0.000822,59158.0,59157.0,0.66637012]
[1724188105088,0.000822,59158.0,59157.0,1.00345312]
[1724188105289,0.000822,59158.0,59157.0,1.00445312]
[1724188106348,0.000822,59158.0,59157.0,1.07075312]
[1724188106763,0.000822,59158.0,59157.0,1.40883612]
[1724188107268,0.000822,59158.0,59157.0,1.44557612]
[1724188107649,0.000822,59158.0,59157.0,1.77965912]
[1724188107862,0.000822,59158.0,59157.0,1.79365912]
[1724188108087,0.000822,59158.0,59157.0,1.96965912]
[1724188108287,0.000822,59160.0,59159.0,1.560059]
[1724188108441,0.000822,59160.0,59159.0,1.84703778]
[1724188109493,0.168962,59185.0,59176.0,0.337971]
[1724188109791,0.168962,59185.0,59177.0,0.37467896]
[1724188109974,0.16896,59186.0,59181.0,0.168971]
[1724188110201,0.337912,59187.0,59181.0,0.0881605]
[1724188110404,0.0793,59194.0,59184.0,0.3713]
[1724188110659,0.337889,59191.0,59185.0,0.00337869]
[1724188110859,0.337892,59191.0,59186.0,0.03746787]
[1724188111061,0.168947,59191.0,59186.0,0.04084654]
[1724188111265,0.168947,59191.0,59186.0,0.20980454]
[1724188111486,0.168947,59191.0,59187.0,0.02686052]
[1724188111687,0.168947,59191.0,59188.0,0.023]
[1724188112571,0.168935,59195.0,59190.0,0.168947]
[1724188112768,0.0793,59201.0,59189.0,0.02596621]
[1724188112945,0.16892,59200.0,59195.0,0.168932]
[1724188113177,0.0793,59201.0,59196.0,0.00311571]
[1724188113388,0.337807,59206.0,59196.0,0.00311571]
[1724188113583,0.0199241,59212.0,59196.0,0.00311571]
[1724188113584,0.33781,59205.0,59198.0,0.168924]
[1724188113803,0.33781,59205.0,59191.0,0.3713]
[1724188113804,0.03,59204.0,59191.0,0.3713]
[1724188114006,0.03,59204.0,59192.0,0.0709197]
[1724188114007,0.33785,59198.0,59192.0,0.0709197]
[1724188114231,0.33785,59198.0,59186.0,0.001]
[1724188114232,0.337852,59198.0,59188.0,0.337905]
[1724188114435,0.168928,59197.0,59192.0,0.168941]
[1724188114666,0.168928,59197.0,59192.0,0.2196256]
[1724188114768,0.169947,59199.0,59198.0,0.014]
[1724188115601,0.001025,59199.0,59198.0,0.014]
[1724188115806,0.169946,59199.0,59198.0,0.014]
[1724188115957,1.183475,59199.0,59198.0,0.014]
[1724188116325,0.000822,59191.0,59188.0,0.168953]
[1724188116541,0.000822,59191.0,59189.0,0.023]
[1724188116726,0.000822,59191.0,59189.0,0.191949]
[1724188116865,0.000822,59191.0,59190.0,0.168947]
[1724188117081,0.000822,59191.0,59190.0,0.191947]
[1724188117278,0.000822,59191.0,59190.0,0.023]
[1724188117482,0.000822,59191.0,59189.0,0.16895]
[1724188117816,0.000822,59191.0,59190.0,0.191947]
[1724188118030,0.000822,59191.0,59190.0,0.184747]
[1724188118236,0.000822,59191.0,59190.0,0.168947]
[1724188118608,0.000822,59191.0,59188.0,0.337905]
[1724188118807,0.000822,59191.0,59190.0,0.168947]
[1724188118985,0.000822,59191.0,59190.0,0.506841]
[1724188119215,0.000822,59191.0,59190.0,0.858735]
[1724188119594,0.000822,59191.0,59190.0,0.964499]
[1724188120141,0.000822,59191.0,59190.0,0.987499]
[1724188120362,0.000822,59191.0,59190.0,0.881735]
[1724188122121,0.000822,59191.0,59190.0,1.219629]
[1724188122524,0.000822,59191.0,59190.0,0.543841]
[1724188123365,0.000822,59191.0,59190.0,0.881735]
[1724188124929,0.000822,59191.0,59190.0,1.220629]
[1724188125131,0.000822,59191.0,59190.0,0.881735]
[1724188127157,0.000822,59191.0,59190.0,1.219629]
[1724188127357,0.000822,59191.0,59190.0,1.033458]
[1724188127511,0.000822,59191.0,59190.0,1.371352]
[1724188127722,0.000822,59191.0,59190.0,1.373352]
[1724188128317,0.000822,59191.0,59190.0,1.375352]
[1724188129162,0.000822,59191.0,59190.0,1.220629]
[1724188131416,0.000822,59191.0,59190.0,1.221629]
[1724188132560,0.000822,59191.0,59190.0,1.220629]
[1724188132757,0.000822,59191.0,59190.0,1.297429]
[1724188133746,0.000822,59191.0,59190.0,1.332169]
[1724188133954,0.000822,59191.0,59190.0,1.49614778]
[1724188134216,0.000822,59191.0,59190.0,1.83404178]
[1724188134627,0.000822,59191.0,59190.0,1.82004178]
[1724188134803,0.000822,59191.0,59190.0,1.48214778]
[1724188135380,0.000822,59191.0,59190.0,1.82004178]
[1724188136560,0.000822,59191.0,59190.0,1.83404178]
[1724188137289,0.000822,59191.0,59190.0,1.83604178]
[1724188138784,0.001025,59199.0,59190.0,1.83604178]
[1724188138785,0.001025,59199.0,59198.0,1.62286]
[1724188139083,0.001025,59199.0,59198.0,1.94246]
[1724188139496,0.0199241,59212.0,59211.0,1.141037]
[1724188139728,0.0199241,59212.0,59211.0,1.501812]
[1724188140557,0.0199241,59212.0,59211.0,1.502812]
[1724188140811,0.0199241,59212.0,59211.0,1.6531932]
[1724188141016,0.0199241,59212.0,59211.0,1.6671932]
[1724188141800,0.0199241,59212.0,59211.0,1.6531932]
[1724188142050,0.0199241,59212.0,59211.0,1.6521932]
[1724188142230,0.0199241,59212.0,59211.0,1.6531932]
[1724188142457,0.0199241,59212.0,59211.0,1.6541932]
[1724188142571,0.0199241,59212.0,59211.0,1.6879332]
[1724188142976,0.0199241,59212.0,59211.0,1.7019332]
[1724188143375,0.0199241,59212.0,59211.0,1.6879332]
[1724188143576,0.0199241,59212.0,59211.0,2.0397082]
[1724188143779,0.00825,59218.0,59217.0,1.18409]
[1724188143980,0.00825,59218.0,59217.0,1.50369]
[1724188144803,0.00825,59218.0,59217.0,1.56669]
[1724188145180,0.0643,59235.0,59221.0,0.001]
[1724188145401,0.0643,59235.0,59217.0,0.3826]
[1724188145402,0.06641394,59251.0,59235.0,0.168819]
[1724188145403,0.168794,59244.0,59235.0,0.168819]
[1724188145619,0.168794,59244.0,59234.0,0.2966]
[1724188145620,0.0805,59246.0,59238.0,0.844052]
[1724188145831,0.0805,59246.0,59238.0,0.506431]
[1724188146045,0.0805,59246.0,59238.0,0.9496551]
[1724188146453,0.410005,59250.0,59238.0,1.3220161]
[1724188146454,0.00825,59250.0,59238.0,1.3220161]
[1724188146835,0.00825,59250.0,59238.0,1.3832161]
[1724188147059,0.00825,59250.0,59238.0,1.3972161]
[1724188147292,0.00825,59250.0,59238.0,1.3982161]
[1724188147494,0.00825,59250.0,59249.0,0.802937]
[1724188147698,0.00825,59250.0,59249.0,1.2545463]
[1724188147901,0.00825,59250.0,59249.0,1.2775463]
[1724188149144,0.00825,59250.0,59249.0,1.6144043]
[1724188149368,0.00825,59250.0,59249.0,1.2768463]
[1724188149807,0.00825,59250.0,59249.0,1.2778463]
[1724188150632,0.00825,59250.0,59249.0,1.2918463]
[1724188150856,0.00825,59250.0,59249.0,1.6294043]
[1724188151271,0.00825,59250.0,59249.0,1.6631443]
[1724188151477,0.005,59256.0,59255.0,1.479234]
[1724188151685,0.005,59256.0,59250.0,0.001]
[1724188151686,0.005,59256.0,59250.0,0.16397878]
[1724188151894,0.0794,59255.0,59251.0,0.023]
[1724188152106,0.0794,59255.0,59249.0,0.037]
[1724188152107,0.0794,59255.0,59249.0,0.014]
[1724188152108,0.585728,59250.0,59249.0,0.014]
[1724188152312,0.585728,59250.0,59223.0,0.49329154]
[1724188152313,0.585728,59250.0,59223.0,0.49229154]
[1724188152314,0.0794,59229.0,59223.0,0.49229154]
[1724188152525,0.337679,59228.0,59223.0,0.49229154]
[1724188152742,0.337679,59228.0,59223.0,0.02021217]
[1724188152743,0.168845,59226.0,59223.0,0.02021217]
[1724188152955,0.168846,59226.0,59216.0,0.633643]
[1724188153165,0.168842,59227.0,59222.0,0.168855]
[1724188153367,0.1465,59229.0,59220.0,0.337723]
[1724188153582,0.1465,59229.0,59223.0,0.168852]
[1724188153583,0.315337,59229.0,59223.0,0.168852]
[1724188153787,0.1465,59229.0,59223.0,0.168852]
[1724188154013,0.168839,59228.0,59223.0,0.168852]
[1724188154194,0.1465,59229.0,59225.0,0.168845]
[1724188154400,0.1465,59229.0,59226.0,0.168843]
[1724188154601,0.1465,59229.0,59224.0,0.168848]
[1724188154602,0.315336,59229.0,59224.0,0.168848]
[1724188155255,0.1465,59229.0,59224.0,0.337696]
[1724188155483,0.1465,59229.0,59226.0,0.168842]
[1724188155710,0.1465,59229.0,59228.0,0.168839]
[1724188155923,0.1465,59229.0,59226.0,0.168843]
[1724188156342,0.1475,59229.0,59226.0,0.168843]
[1724188156552,0.1465,59229.0,59226.0,0.168843]
[1724188156990,0.1475,59229.0,59228.0,0.014]
[1724188157217,0.1465,59229.0,59227.0,0.16884]
[1724188157623,0.1475,59229.0,59227.0,0.16884]
[1724188158081,0.1475,59229.0,59224.0,0.337696]
[1724188158296,0.1475,59229.0,59226.0,0.168843]
[1724188158731,0.1475,59229.0,59227.0,0.16884]
[1724188159625,0.1475,59229.0,59228.0,0.529517]
[1724188159626,0.0804,59229.0,59228.0,0.529517]
[1724188159832,0.0814,59229.0,59228.0,0.520517]
[1724188160038,0.0804,59229.0,59228.0,0.529517]
[1724188160242,0.0804,59229.0,59228.0,0.9552867]
[1724188160243,0.001,59229.0,59228.0,0.9552867]
[1724188160446,0.001,59229.0,59228.0,1.2592247]
[1724188160447,0.002,59229.0,59228.0,1.2592247]
[1724188160619,0.001,59229.0,59228.0,1.2929647]
[1724188160879,0.002,59229.0,59228.0,1.7989427]
[1724188161307,0.0834,59247.0,59244.0,0.168792]
[1724188161500,0.0834,59247.0,59245.0,0.022]
[1724188162261,0.0834,59247.0,59246.0,0.168787]
[1724188162468,0.237372,59252.0,59251.0,0.168773]
[1724188162469,0.0686,59252.0,59251.0,0.168773]
[1724188162670,0.0834,59254.0,59252.0,0.168767]
[1724188162823,0.0834,59254.0,59253.0,0.168767]
[1724188163022,0.0834,59254.0,59253.0,0.167767]
[1724188163451,0.0834,59254.0,59253.0,0.505302]
[1724188163653,0.0834,59254.0,59253.0,0.864837]
[1724188163858,0.00845,59259.0,59253.0,0.4478187]
[1724188164066,0.00845,59259.0,59256.0,0.168756]
[1724188164267,0.00845,59259.0,59256.0,0.167756]
[1724188164693,0.00845,59259.0,59258.0,0.168753]
[1724188166135,0.00845,59259.0,59258.0,0.5451353]
[1724188166379,0.00845,59259.0,59258.0,0.8826423]
[1724188167017,0.00845,59259.0,59258.0,0.865767]
[1724188167300,0.00845,59259.0,59258.0,1.161667]
[1724188167735,0.00945,59259.0,59258.0,1.175667]
[1724188168155,0.00945,59259.0,59258.0,1.513174]
[1724188168385,0.00945,59259.0,59258.0,1.71089278]
[1724188169046,0.00845,59259.0,59258.0,1.69689278]
[1724188169241,0.00845,59259.0,59258.0,1.71089278]
[1724188169713,0.00845,59259.0,59258.0,1.69789278]
[1724188169930,0.00845,59259.0,59258.0,1.71089278]
[1724188170150,0.00845,59259.0,59258.0,1.71189278]
[1724188170576,0.0416741,59271.0,59270.0,0.168719]
[1724188170824,0.0416741,59271.0,59270.0,0.0168719]
[1724188171043,0.0416741,59271.0,59270.0,0.1855909]
[1724188171254,0.0416741,59271.0,59270.0,0.0168719]
[1724188171695,0.0416741,59271.0,59262.0,0.337484]
[1724188171912,0.0416741,59271.0,59258.0,0.36664]
[1724188171913,0.0116741,59271.0,59263.0,0.023]
[1724188172202,0.0116741,59271.0,59270.0,0.506157]
[1724188172408,0.0126741,59271.0,59270.0,0.205719]
[1724188172586,0.0126741,59271.0,59270.0,0.19509292]
[1724188172587,0.0116741,59271.0,59270.0,0.19509292]
[1724188172828,0.0126741,59271.0,59270.0,0.58578501]
[1724188173012,0.1813911,59271.0,59262.0,0.014]
[1724188173245,0.1803411,59271.0,59267.0,0.168726]
[1724188173447,0.1803411,59271.0,59270.0,0.014]
[1724188173648,0.2615411,59271.0,59270.0,0.014]
[1724188174240,0.5989741,59271.0,59270.0,0.014]
[1724188174734,1.2738401,59271.0,59270.0,0.014]
[1724188174924,1.28922643,59271.0,59270.0,0.014]
[1724188177095,1.29004643,59271.0,59270.0,0.014]
[1724188178434,1.181054,59269.0,59268.0,0.000902]
[1724188178633,1.19644033,59269.0,59268.0,0.000902]
[1724188179664,1.19744033,59269.0,59268.0,0.008902]
[1724188182000,1.1974382,59269.0,59268.0,0.008902]
[1724188183002,1.19722268,59269.0,59268.0,0.008902]
[1724188184772,1.53466668,59269.0,59268.0,0.008902]
[1724188185034,1.53466668,59269.0,59268.0,0.00468943]
[1724188185907,1.5346647,59269.0,59268.0,0.00468943]
[1724188188765,1.6210647,59269.0,59268.0,0.00468943]
[1724188188973,2.73478104,59269.0,59268.0,4.3e-07]
[1724188189184,2.73478104,59269.0,59246.0,0.49229154]
[1724188189185,1.181491,59247.0,59246.0,0.49229154]
[1724188189396,1.19687322,59247.0,59246.0,0.49229154]
[1724188189599,1.19687322,59247.0,59238.0,0.168809]
[1724188189600,0.168799,59242.0,59238.0,0.168809]
[1724188189816,0.168802,59241.0,59237.0,0.16881]
[1724188189994,0.33759,59244.0,59235.0,0.337632]
[1724188189995,0.1688,59242.0,59238.0,0.168809]
[1724188190234,0.33759,59244.0,59230.0,0.337665]
[1724188190235,0.337588,59244.0,59230.0,0.337665]
[1724188190444,0.168818,59236.0,59232.0,0.168826]
[1724188191071,0.01538928,59235.0,59232.0,0.168826]
[1724188191255,0.337626,59238.0,59230.0,0.41984]
[1724188191506,0.168811,59238.0,59233.0,0.168822]
[1724188191730,0.168811,59238.0,59232.0,0.337655]
[1724188191941,0.001,59242.0,59238.0,0.168809]
[1724188192152,0.01539025,59241.0,59238.0,0.168809]
[1724188192366,0.001,59242.0,59239.0,0.168807]
[1724188192573,0.01539028,59241.0,59238.0,0.168809]
[1724188192777,0.169799,59242.0,59239.0,0.023]
[1724188192997,0.01539017,59241.0,59239.0,0.191806]
[1724188193206,0.168797,59243.0,59239.0,0.191806]
[1724188193410,0.01539021,59242.0,59239.0,0.191806]
[1724188193614,0.168799,59242.0,59239.0,0.023]
[1724188193798,0.001,59241.0,59238.0,0.20281]
[1724188195044,0.001,59241.0,59239.0,0.337615]
[1724188195256,0.168791,59245.0,59241.0,0.168801]
[1724188195456,0.168791,59245.0,59242.0,0.023]
[1724188195664,0.0877,59247.0,59242.0,0.023]
[1724188195665,0.001,59243.0,59242.0,0.191799]
[1724188195870,0.001,59243.0,59242.0,0.023]
[1724188196113,0.001,59243.0,59241.0,0.022]
[1724188196382,0.168791,59245.0,59241.0,0.190801]
[1724188196860,0.169791,59245.0,59242.0,0.009]
[1724188197076,0.168791,59245.0,59241.0,0.190801]
[1724188198263,0.001,59243.0,59241.0,0.201801]
[1724188198704,0.001,59243.0,59241.0,0.190801]
[1724188198905,0.001,59243.0,59241.0,0.201801]
[1724188199111,0.168791,59245.0,59241.0,0.190801]
[1724188199544,0.001,59243.0,59241.0,0.198801]
[1724188200455,0.001,59243.0,59242.0,0.168799]
[1724188200694,0.001,59243.0,59242.0,0.191799]
[1724188200914,0.001,59243.0,59242.0,0.023]
[1724188201328,0.16879,59245.0,59242.0,0.023]
[1724188201527,0.16879,59245.0,59241.0,0.023]
[1724188201750,0.16979,59245.0,59241.0,0.034]
[1724188201954,0.16879,59245.0,59241.0,0.023]
[1724188202169,0.16879,59245.0,59242.0,0.168799]
[1724188202400,0.001,59243.0,59242.0,0.178799]
[1724188202611,0.001,59243.0,59242.0,0.191799]
[1724188203198,0.001,59245.0,59242.0,0.191799]
[1724188203413,0.001,59245.0,59243.0,0.023]
[1724188203656,0.001,59245.0,59244.0,0.168793]
[1724188203842,0.001,59245.0,59244.0,0.023]
[1724188204273,0.001,59245.0,59242.0,0.191798]
[1724188204448,0.001,59245.0,59242.0,0.202798]
[1724188204449,0.002,59245.0,59242.0,0.202798]
[1724188204887,0.168783,59248.0,59242.0,0.023]
[1724188205070,0.001,59245.0,59244.0,0.007]
[1724188205313,0.01539159,59247.0,59244.0,0.007]
[1724188205314,0.168785,59247.0,59244.0,0.023]
[1724188205491,0.01539151,59246.0,59245.0,0.023]
[1724188205642,0.01539151,59246.0,59245.0,0.022]
[1724188205850,0.01539151,59246.0,59243.0,0.168795]
[1724188206046,0.168785,59247.0,59243.0,0.168795]
[1724188206259,0.001,59245.0,59244.0,0.007]
[1724188207774,0.001,59245.0,59244.0,0.03]
[1724188207946,0.168788,59246.0,59244.0,0.023]
[1724188208147,0.168788,59246.0,59243.0,0.023]
[1724188208450,0.169788,59246.0,59245.0,0.012]
[1724188208626,0.18418138,59246.0,59245.0,0.023]
[1724188208860,0.18418141,59246.0,59245.0,0.022]
[1724188209505,0.18518141,59246.0,59243.0,0.180795]
[1724188209625,0.01539341,59245.0,59243.0,0.180795]
[1724188209982,0.01539341,59245.0,59243.0,0.168795]
[1724188210245,0.168785,59247.0,59243.0,0.168795]
[1724188210420,0.01539359,59246.0,59243.0,0.168795]
[1724188210622,0.01539359,59245.0,59243.0,0.168795]
[1724188210829,0.168785,59247.0,59243.0,0.168795]
[1724188211027,0.18418062,59246.0,59244.0,0.023]
[1724188211222,0.169788,59246.0,59245.0,0.012]
[1724188211424,0.18418078,59246.0,59245.0,0.023]
[1724188211787,0.18418078,59246.0,59245.0,0.022]
[1724188211988,0.18418078,59246.0,59242.0,0.168798]
[1724188212194,0.01539278,59245.0,59242.0,0.168798]
[1724188212442,0.01539278,59244.0,59242.0,0.168798]
[1724188212649,0.168791,59245.0,59242.0,0.168798]
[1724188213016,0.01539225,59244.0,59242.0,0.168798]
[1724188213217,0.168791,59245.0,59242.0,0.168798]
[1724188213445,0.01539307,59244.0,59243.0,0.168795]
[1724188213654,0.01539307,59244.0,59243.0,0.506387]
[1724188213857,0.01539307,59244.0,59243.0,0.529387]
[1724188215992,0.01621407,59244.0,59243.0,0.529387]
[1724188216506,0.424098,59242.0,59241.0,0.000902]
[1724188216714,1.366893,59242.0,59241.0,0.000902]
[1724188216923,1.366893,59242.0,59241.0,0.00057757]
[1724188216924,2.27345139,59242.0,59241.0,0.00057757]
[1724188217146,2.63784493,59242.0,59241.0,8.593e-05]
[1724188217356,2.46484267,59242.0,59241.0,8.593e-05]
[1724188217799,2.81084267,59242.0,59241.0,8.593e-05]
[1724188218181,2.7969474,59242.0,59241.0,8.593e-05]
[1724188218432,2.29128572,59242.0,59241.0,8.593e-05]
[1724188218636,2.19232953,59242.0,59241.0,8.593e-05]
[1724188219572,2.20632953,59242.0,59241.0,0.00108593]
[1724188219914,2.19232953,59242.0,59241.0,8.593e-05]
[1724188220341,2.20432953,59242.0,59241.0,0.00108593]
[1724188220553,2.20532953,59242.0,59241.0,0.00108593]
[1724188220699,1.36389,59227.0,59226.0,0.000902]
[1724188220917,1.37927656,59227.0,59226.0,0.000902]
[1724188222334,1.38027656,59227.0,59226.0,0.006902]
[1724188223153,1.74440979,59227.0,59226.0,0.006902]
[1724188223330,1.84440979,59227.0,59226.0,0.006902]
[1724188223956,1.81795956,59227.0,59226.0,0.006902]
[1724188224536,1.86407928,59227.0,59226.0,0.006902]
[1724188224677,1.81795956,59227.0,59226.0,0.006902]
[1724188224904,2.15564256,59227.0,59226.0,0.006902]
[1724188225106,2.15464256,59227.0,59226.0,0.000902]
[1724188225322,2.21284358,59227.0,59226.0,0.000902]
[1724188225580,2.15864256,59227.0,59226.0,0.000902]
[1724188225797,2.15464256,59227.0,59226.0,0.000902]
[1724188226145,1.88316017,59227.0,59226.0,0.001902]
[1724188226362,1.809573,59227.0,59226.0,0.001902]
[1724188226564,1.82495758,59227.0,59226.0,0.000902]
[1724188226713,1.88715841,59227.0,59226.0,0.000902]
[1724188226913,1.87515841,59227.0,59226.0,0.000902]
[1724188227440,2.15464058,59227.0,59226.0,0.000902]
[1724188228298,2.16264058,59227.0,59226.0,0.001902]